[Event "NED-ch U20 Youth 2019"]
[Site "Assen"]
[Date "2019.04.28"]
[Round "1.9"]
[White "Ypma, Jord"]
[Black "Van Roon, Sjoerd"]
[Result "1-0"]
[ECO "D35"]
[WhiteElo "1854"]
[BlackElo "2115"]
[Annotator "NA"]
[PlyCount "71"]
[EventDate "2019.04.28"]
[EventType "swiss"]
[EventCountry "NED"]
[SourceTitle "playchess.com"]
[Source "ChessBase"]
[SourceQuality "1"]
[TimeControl "40/5400+30:1800+30"]

1. d4 {[%emt 0:00:00]} Nf6 {[%emt 0:00:00]} 2. c4 {[%emt 0:00:00]} e6 {[%emt 0:00:00]} 3. Nc3 {[%emt 0:00:44]} d5 {[%emt 0:00:38]} 4. cxd5 {[%emt 0:00:24]} exd5 {[%emt 0:00:06]} 5. Bg5 {[%emt 0:00:19]} Be7 {[%emt 0:01:14]} 6. e3 {[%emt 0:00:49]} Be6 {[%emt 0:02:29]} 7. Bd3 {[%emt 0:00:51]} O-O {[%emt 0:01:56]} 8. Nge2 {[%emt 0:00:26]} Nbd7 {[%emt 0:03:42] D35: Queen's Gambit Declined: Exchange Variation} 9. O-O {[%emt 0:00:57]} h6 {[%emt 0:01:57]} (9... c5 10. Nf4 h6 11. Nxe6 fxe6 12. Bh4 a6 13. dxc5 Nxc5 14. Bc2 Rc8 15. Qe2 b5 16. Rad1 {½-½ (32) Enchev,I (2437)-Dimitrov,R (2445) Kozloduy 2014}) 10. Bh4 {[%emt 0:00:24]} Rb8 $146 {[%emt 0:09:52]} ({Predecessor:} 10... Re8 11. Nf4 c6 12. Nxe6 fxe6 13. Qf3 Nh7 14. Bg3 Ndf6 15. Bg6 Rf8 16. Be5 Bd6 {½-½ (27) Juptner,J (2322)-Dvorak,J (2144) Czech Republic 2016}) 11. f3 {[%emt 0:06:05]} c5 {[%emt 0:02:04]} 12. Qd2 {[%emt 0:07:12]} c4 {[%emt 0:01:19]} 13. Bc2 {[%emt 0:00:48]} b5 {[%emt 0:02:10]} 14. a3 {[%emt 0:02:52]} a5 {[%emt 0:02:54]} 15. Bg3 {[%emt 0:08:54]} Rb7 {[%emt 0:05:55]} 16. e4 {[%emt 0:06:11]} b4 {[%emt 0:00:32]} 17. axb4 {[%emt 0:00:19]} axb4 {[%emt 0:00:08]} 18. Nd1 {[%emt 0:02:27]} Nb6 {[%emt 0:10:12]} 19. e5 {[%emt 0:00:53]} Nfd7 {[%emt 0:07:19]} 20. f4 {[%emt 0:01:05]} f5 {[%emt 0:03:52]} 21. Ne3 {[%emt 0:02:52]} Qc7 {[%emt 0:03:17]} 22. Qe1 {[%emt 0:04:39]} Ra7 {[%emt 0:13:41]} 23. Rxa7 {[%emt 0:01:26]} Qxa7 {[%emt 0:00:17]} 24. Bh4 {[%emt 0:00:16]} Nb8 {[%emt 0:00:06]} 25. Bxe7 $18 {[%emt 0:01:02]} Qxe7 {[%emt 0:00:06]} 26. g4 {[%emt 0:02:16]} fxg4 {[%emt 0:02:39]} 27. f5 {[%emt 0:04:08]} Qg5 {[%emt 0:00:50]} 28. Nf4 {[%emt 0:15:02]} Bc8 {[%emt 0:11:07]} 29. Ng6 {[%emt 0:00:00]} Re8 {[%emt 0:00:31]} 30. f6 {[%emt 0:00:00]} Be6 {[%emt 0:04:04]} 31. Nf5 {[%emt 0:00:00]} gxf6 {[%emt 0:05:53]} 32. exf6 {[%emt 0:00:00]} Bf7 {[%emt 0:03:26]} 33. Nfe7+ {[%emt 0:01:04]} Rxe7 {[%emt 0:00:31]} 34. Qxe7 {[%emt 0:03:38]} g3 {[%emt 0:00:44]} 35. Qf8+ {[%emt 0:00:07]} Kh7 {[%emt 0:00:03]} 36. Qh8# {[%emt 0:00:14]} 1-0

[Event "NED-ch U20 Youth 2019"]
[Site "Assen"]
[Date "2019.04.28"]
[Round "1.10"]
[White "Pols, Wiggert"]
[Black "Van Aken, Jelmer"]
[Result "1-0"]
[ECO "E06"]
[WhiteElo "2104"]
[BlackElo "1698"]
[Annotator "NA"]
[PlyCount "23"]
[EventDate "2019.04.28"]
[EventType "swiss"]
[EventCountry "NED"]
[SourceTitle "playchess.com"]
[Source "ChessBase"]
[SourceQuality "1"]
[TimeControl "40/5400+30:1800+30"]

1. Nf3 {[%emt 0:00:00]} Nf6 {[%emt 0:00:00]} 2. g3 {[%emt 0:00:30]} d5 {[%emt 0:00:30]} 3. Bg2 {[%emt 0:00:30]} e6 {[%emt 0:00:30]} 4. O-O {[%emt 0:00:30]} Be7 {[%emt 0:00:30]} 5. d4 {[%emt 0:00:30]} O-O {[%emt 0:00:30]} 6. c4 {[%emt 0:00:30]} c6 {[%emt 0:00:30]} 7. Qc2 {[%emt 0:00:30]} b6 {[%emt 0:00:30]} 8. cxd5 {[%emt 0:00:30]} cxd5 {[%emt 0:00:30]} 9. Bf4 {[%emt 0:00:30]} Ba6 {[%emt 0:00:30]} 10. Ne5 {[%emt 0:00:30]} Nbd7 {[%emt 0:00:30]} 11. Qc6 {[%emt 0:00:30]} Rc8 {[%emt 0:00:30]} 12. Qa4 {[%emt 0:00:30]} 1-0

[Event "NED-ch U20 Youth 2019"]
[Site "Assen"]
[Date "2019.04.29"]
[Round "2.7"]
[White "Van Roon, Sjoerd"]
[Black "Emans, Job"]
[Result "1-0"]
[ECO "C54"]
[WhiteElo "2115"]
[BlackElo "1945"]
[Annotator "NA RC"]
[PlyCount "95"]
[EventDate "2019.04.28"]
[EventType "swiss"]
[EventCountry "NED"]
[SourceTitle "playchess.com"]
[Source "ChessBase"]
[SourceQuality "1"]
[TimeControl "40/5400+30:1800+30"]

1. e4 {[%emt 0:00:00]} e5 {[%emt 0:00:00]} 2. Nf3 {[%emt 0:00:00]} Nc6 {[%emt 0:00:00]} 3. Bc4 {[%emt 0:00:00]} Bc5 {[%emt 0:00:00]} 4. c3 {[%emt 0:00:00]} Nf6 {[%emt 0:00:00]} 5. d3 {[%emt 0:00:00]} a6 {[%emt 0:00:22]} 6. a4 {[%emt 0:00:14] C54: Giuoco Piano: 4 c3 Nf6, main lines with 5 d4 and 5 d3} d6 {[%emt 0:00:23]} 7. Nbd2 {[%emt 0:00:39]} a5 {[%emt 0:06:14]} 8. O-O {[%emt 0:00:53]} O-O {[%emt 0:00:11]} 9. h3 {[%emt 0:03:09]} Be6 {[%emt 0:01:14]} 10. Re1 {[%emt 0:01:49]} h6 {[%emt 0:09:09]} 11. Nf1 $146 {[%emt 0:05:26]} ({Predecessor:} 11. Qb3 Qd7 12. Bxe6 fxe6 13. Nf1 Nh5 {½-½ (43) Nepomniachtchi,I (2757)-Grischuk,A (2766) chess.com INT 2018}) 11... Bxc4 {[%emt 0:09:18]} 12. dxc4 {[%emt 0:00:07]} Ne7 {[%emt 0:00:32]} 13. Ng3 {[%emt 0:05:53]} Qd7 {[%emt 0:07:28]} 14. Nh4 {[%emt 0:07:29]} Kh7 {[%emt 0:04:49]} 15. Be3 {[%emt 0:16:39]} Bxe3 {[%emt 0:04:23]} 16. Rxe3 {[%emt 0:01:18]} g6 {[%emt 0:00:12]} 17. Nf3 {[%emt 0:05:42]} Qc6 {[%emt 0:02:32]} 18. Nd2 {[%emt 0:00:42]} Nd7 {[%emt 0:02:33]} 19. Qc2 {[%emt 0:02:18]} Nc5 {[%emt 0:07:05]} 20. Rf3 {[%emt 0:02:20]} Ne6 {[%emt 0:04:20]} 21. h4 {[%emt 0:03:34]} Nf4 {[%emt 0:01:57]} 22. b3 {[%emt 0:05:49]} Qd7 {[%emt 0:02:41]} 23. h5 {[%emt 0:13:05]} Qg4 {[%emt 0:08:05]} 24. Ndf1 {[%emt 0:05:05]} gxh5 {[%emt 0:05:12]} 25. Ne3 {[%emt 0:00:55]} Qg5 {[%emt 0:00:13]} 26. Ne2 {[%emt 0:03:03]} Rg8 {[%emt 0:04:08]} 27. Rg3 {[%emt 0:01:33]} Qh4 {[%emt 0:00:53]} 28. Nxf4 $15 {[%emt 0:05:57]} exf4 {[%emt 0:02:20]} 29. Rxg8 {[%emt 0:00:41]} Rxg8 {[%emt 0:00:40]} 30. e5+ {[%emt 0:00:51]} Kh8 {[%emt 0:00:32]} 31. Qe4 {[%emt 0:03:27]} Qg5 {[%emt 0:05:57]} 32. exd6 {[%emt 0:00:49]} cxd6 {[%emt 0:00:38]} 33. Nd5 {[%emt 0:00:55]} Nc6 {[%emt 0:02:57]} 34. Nxf4 {[%emt 0:02:46]} f5 {[%emt 0:00:58]} 35. Qe3 {[%emt 0:00:44]} h4 {[%emt 0:00:34]} 36. Kh1 {[%emt 0:01:52]} Rg7 {[%emt 0:04:10]} 37. Rg1 {[%emt 0:01:23]} Re7 {[%emt 0:00:21]} 38. Qc1 {[%emt 0:00:31]} Re4 {[%emt 0:04:28]} 39. Nh3 {[%emt 0:00:27]} Qg7 {[%emt 0:01:01]} 40. Qd2 {[%emt 0:00:26]} Qf6 {[%emt 0:00:44]} 41. Rd1 {[%emt 0:31:01]} Kg7 {[%emt 0:16:33]} 42. f3 {[%emt 0:00:00]} Re7 {[%emt 0:02:50]} 43. Nf4 {[%emt 0:00:00]} Qg5 {[%emt 0:02:19]} 44. Qxd6 {[%emt 0:00:00]} Kh7 {[%emt 0:00:27]} 45. Nd5 {[%emt 0:00:00]} h3 {[%emt 0:04:03]} 46. gxh3 {[%emt 0:00:00]} Rf7 {[%emt 0:01:52]} 47. Rg1 {[%emt 0:00:00]} Qh5 {[%emt 0:02:19]} 48. Qg3 {[%emt 0:00:00]} 1-0

[Event "NED-ch U20 Youth 2019"]
[Site "Assen"]
[Date "2019.04.29"]
[Round "2.8"]
[White "Van Doren, Bas"]
[Black "Van Foreest, Machteld"]
[Result "0-1"]
[ECO "C52"]
[WhiteElo "1945"]
[BlackElo "2065"]
[Annotator "NA RC"]
[PlyCount "52"]
[EventDate "2019.04.28"]
[EventType "swiss"]
[EventCountry "NED"]
[SourceTitle "playchess.com"]
[Source "ChessBase"]
[SourceQuality "1"]
[TimeControl "40/5400+30:1800+30"]

1. e4 {[%emt 0:00:00]} e5 {[%emt 0:00:00]} 2. Nf3 {[%emt 0:00:00]} Nc6 {[%emt 0:00:00]} 3. Bc4 {[%emt 0:00:00]} Bc5 {[%emt 0:00:00]} 4. b4 {[%emt 0:00:00]} Bxb4 {[%emt 0:00:00]} 5. c3 {[%emt 0:00:00]} Ba5 {[%emt 0:00:00]} 6. d4 {[%emt 0:00:07]} b5 {[%emt 0:00:00] C52: Evans Gambit Accepted: 5 c3 Ba5} (6... d6 7. Qb3 Qd7 8. O-O Bb6 9. Bb5 a6 10. Ba4 Ba7 11. Na3 Nge7 12. d5 b5 13. Nxb5 axb5 14. Bxb5 O-O 15. dxc6 Qg4 16. Qc2 {0-1 (48) Li,C (2751)-Ding,L (2766) Huaian 2016}) 7. Bxb5 {[%emt 0:00:13]} Nxd4 {[%emt 0:00:00]} 8. Nxd4 {[%emt 0:00:09]} exd4 {[%emt 0:00:00]} 9. O-O {[%emt 0:00:12]} Ne7 {[%emt 0:16:34]} 10. cxd4 {[%emt 0:00:19]} O-O {[%emt 0:01:05]} 11. d5 $146 {[%emt 0:10:24]} ({Predecessor:} 11. Ba3 Rb8 12. Bc4 d6 13. Nd2 c6 14. Rc1 {1-0 (27) Bruedigam,M (2408)-Boettcher,P (2150) Berlin 2016}) 11... Rb8 {[%emt 0:01:40]} 12. Bc4 {[%emt 0:05:57]} Ng6 {[%emt 0:02:04]} 13. Ba3 {[%emt 0:20:14]} Re8 {[%emt 0:02:36]} 14. d6 {[%emt 0:03:15]} (14. Nd2 $11 {keeps the balance.}) 14... Qf6 {[%emt 0:13:40]} ({Don't play} 14... Rxe4 $6 15. Bxf7+ Kh8 16. dxc7 $14) 15. Nd2 {[%emt 0:07:32]} cxd6 {[%emt 0:13:49]} 16. e5 $2 {[%emt 0:09:14]} (16. Nf3 $11 {and White is okay.}) 16... Nxe5 {[%emt 0:12:30]} 17. Ne4 {[%emt 0:01:35]} Qg6 {[%emt 0:04:01]} 18. Bd5 {[%emt 0:08:55]} Ba6 {[%emt 0:00:59]} 19. Nxd6 {[%emt 0:01:04]} Bxf1 {[%emt 0:01:56]} 20. Qxf1 {[%emt 0:04:42] [#]} Rf8 $1 {[%emt 0:02:33]} 21. Be4 {[%emt 0:03:44]} Qf6 {[%emt 0:01:30]} 22. Nb7 {[%emt 0:04:09]} Bb6 {[%emt 0:01:06]} 23. Bxf8 {[%emt 0:01:07]} Kxf8 {[%emt 0:00:13]} 24. a4 $2 {[%emt 0:04:56]} (24. Rb1) 24... Ng4 {[%emt 0:01:25]} 25. Ra2 {[%emt 0:00:34] [#]} Qf4 $1 {[%emt 0:03:30]} 26. Qc4 {[%emt 0:01:37]} Bxf2+ {[%emt 0:00:12]} 0-1

[Event "NED-ch U20 Youth 2019"]
[Site "Assen"]
[Date "2019.04.29"]
[Round "2.9"]
[White "Reichardt, Robin"]
[Black "Achuthan, Dylan"]
[Result "*"]
[ECO "D90"]
[WhiteElo "2061"]
[BlackElo "1863"]
[Annotator "NA RC"]
[PlyCount "82"]
[EventDate "2019.04.28"]
[EventType "swiss"]
[EventCountry "NED"]
[SourceTitle "playchess.com"]
[Source "ChessBase"]
[SourceQuality "1"]
[TimeControl "40/5400+30:1800+30"]

1. d4 {[%emt 0:00:00]} Nf6 {[%emt 0:00:00]} 2. c4 {[%emt 0:00:00]} g6 {[%emt 0:00:00]} 3. Nf3 {[%emt 0:00:41]} Bg7 {[%emt 0:00:09]} 4. Nc3 {[%emt 0:00:14]} d5 {[%emt 0:00:19]} 5. h4 {[%emt 0:01:03]} h6 {[%emt 0:10:12]} (5... c6 6. cxd5 cxd5 7. Bf4 O-O 8. e3 Nc6 9. Qb3 Na5 10. Qa3 Nc6 11. Qb3 Na5 12. Qa3 Nc6 {½-½ (34) Swiercz,D (2655)-Nepomniachtchi,I (2771) Astana 2019}) 6. Bf4 {[%emt 0:07:18] D90: Grünfeld: 4 Nf3 Bg7 sidelines} O-O {[%emt 0:06:59]} 7. e3 $146 {[%emt 0:03:28]} ({Predecessor:} 7. Qd2 h5 8. cxd5 Nxd5 9. Bh6 Nxc3 10. Bxg7 Kxg7 11. Qxc3 Bf5 12. Rd1 Qd5 {1-0 (25) Krzyzanowski,M (2491)-Sapale,S (2187) Zadar 2018}) 7... c5 {[%emt 0:00:21]} 8. dxc5 {[%emt 0:16:52]} Ne4 {[%emt 0:01:46]} 9. Nxe4 {[%emt 0:14:45]} (9. Be5 $11 Nxc3 10. Bxc3 (10. bxc3 dxc4 11. Qxd8 Rxd8 $11)) 9... dxe4 {[%emt 0:00:40]} 10. Qxd8 {[%emt 0:20:47]} Rxd8 {[%emt 0:00:12]} 11. Bxb8 {[%emt 0:00:54]} (11. Ne5 $142) 11... exf3 {[%emt 0:23:39]} ({Don't play} 11... Rxb8 12. Nd4 $15) (11... Bxb2 $142 12. Bc7 Rd7) 12. Bc7 {[%emt 0:05:22]} Rd7 {[%emt 0:00:39]} 13. Ba5 {[%emt 0:00:50]} Bxb2 {[%emt 0:02:54]} (13... b6 $5 14. Bc3 Bxc3+ 15. bxc3 Bb7 16. gxf3 Bxf3 $17) 14. Rb1 {[%emt 0:00:51]} Bf6 {[%emt 0:03:02]} 15. gxf3 {[%emt 0:01:35]} b6 {[%emt 0:01:07]} 16. Bg2 {[%emt 0:12:14]} Bb7 {[%emt 0:09:25]} ({And not} 16... bxa5 17. f4 $16) 17. cxb6 {[%emt 0:02:40]} axb6 {[%emt 0:00:41]} 18. Bxb6 {[%emt 0:00:20]} Bc3+ {[%emt 0:01:11]} 19. Kf1 $11 {[%emt 0:00:52]} Rxa2 {[%emt 0:02:04]} 20. Kg1 {[%emt 0:02:37]} Rdd2 {[%emt 0:03:19]} 21. e4 {[%emt 0:00:34]} Bc6 {[%emt 0:22:05]} 22. Be3 {[%emt 0:00:47]} Rdc2 {[%emt 0:01:00]} 23. Rd1 {[%emt 0:03:28]} Be5 {[%emt 0:02:03]} 24. c5 {[%emt 0:02:00]} Bg3 {[%emt 0:02:46]} 25. Rf1 {[%emt 0:01:21]} Bb5 {[%emt 0:01:26]} 26. Rc1 {[%emt 0:00:54]} Bxf2+ {[%emt 0:02:16]} 27. Kh2 {[%emt 0:00:26]} Bxe3 {[%emt 0:01:04]} 28. Rxc2 {[%emt 0:00:01]} Rxc2 {[%emt 0:00:02]} 29. Kg3 {[%emt 0:00:43]} Bxc5 {[%emt 0:00:32]} 30. Rb1 {[%emt 0:00:08]} Bd3 {[%emt 0:01:00]} 31. Rb8+ {[%emt 0:00:11]} Kg7 {[%emt 0:00:02]} 32. Rb3 {[%emt 0:00:43]} Bc4 {[%emt 0:00:32]} 33. Rb7 {[%emt 0:00:04]} Bd6+ {[%emt 0:00:21]} 34. f4 {[%emt 0:00:19]} Bd3 {[%emt 0:01:21]} 35. Bf3 {[%emt 0:00:30]} Rc3 {[%emt 0:00:27]} 36. Kf2 {[%emt 0:00:23]} Bxf4 {[%emt 0:00:23]} 37. Rxe7 {[%emt 0:00:10]} Rc2+ {[%emt 0:00:15]} 38. Kg1 {[%emt 0:00:13]} Be3+ {[%emt 0:00:34]} 39. Kh1 {[%emt 0:00:07]} Bf1 {[%emt 0:01:05]} 40. Rd7 {[%emt 0:01:19]} Rf2 {[%emt 0:01:01]} 41. Bd1 {[%emt 0:30:32]} Bg2+ {[%emt 0:30:24]} *

[Event "NED-ch U20 Youth 2019"]
[Site "Assen"]
[Date "2019.04.29"]
[Round "2.10"]
[White "Van Aken, Jelmer"]
[Black "Gijsen, William"]
[Result "0-1"]
[ECO "B40"]
[WhiteElo "1698"]
[BlackElo "2041"]
[Annotator "NA RC"]
[PlyCount "63"]
[EventDate "2019.04.28"]
[EventType "swiss"]
[EventCountry "NED"]
[SourceTitle "playchess.com"]
[Source "ChessBase"]
[SourceQuality "1"]
[TimeControl "40/5400+30:1800+30"]

1. e4 {[%emt 0:00:00]} c5 {[%emt 0:00:00]} 2. Nf3 {[%emt 0:00:00]} e6 {[%emt 0:00:00]} 3. d4 {[%emt 0:00:00]} cxd4 {[%emt 0:00:00]} 4. Nxd4 {[%emt 0:00:00]} Nf6 {[%emt 0:00:00]} 5. Nc3 {[%emt 0:00:00]} Bb4 {[%emt 0:00:09]} 6. e5 {[%emt 0:00:02]} Nd5 {[%emt 0:00:09]} 7. Bd2 {[%emt 0:00:44]} Nxc3 {[%emt 0:02:45] B40: Sicilian: 2...e6, Unusual lines} (7... Bxc3 8. bxc3 O-O 9. Bd3 d6 10. exd6 Qxd6 11. O-O Bd7 12. Rb1 Na6 13. Bxa6 Qxa6 14. Qf3 Rac8 15. Rfc1 b6 16. Qd3 Qc4 {0-1 (34) Ragger,M (2687)-Jobava,B (2627) St Petersburg 2018}) 8. Bxc3 {[%emt 0:00:25]} Bxc3+ {[%emt 0:00:08]} 9. bxc3 {[%emt 0:00:08]} Qc7 {[%emt 0:02:22]} 10. Nb5 {[%emt 0:07:11]} Qxe5+ {[%emt 0:00:21]} 11. Qe2 {[%emt 0:00:16]} Qxe2+ {[%emt 0:04:23]} 12. Bxe2 {[%emt 0:00:07]} Na6 {[%emt 0:00:09]} 13. Nd6+ $146 {[%emt 0:02:46]} ({Predecessor:} 13. Bf3 O-O 14. Nd6 Rb8 15. O-O {0-1 (43) Vaut,A-Averhoff,N Hamburg 1989}) 13... Ke7 {[%emt 0:00:19]} 14. O-O-O {[%emt 0:01:10]} Nc5 {[%emt 0:01:54]} 15. Rd4 {[%emt 0:07:37]} b6 {[%emt 0:03:26]} 16. Rhd1 {[%emt 0:05:23]} Rb8 {[%emt 0:07:44]} 17. Bf3 {[%emt 0:14:35]} Rd8 {[%emt 0:00:27]} 18. Rf4 {[%emt 0:04:18]} f6 {[%emt 0:08:45]} 19. g4 {[%emt 0:12:02]} Bb7 {[%emt 0:03:14]} 20. Bxb7 {[%emt 0:05:08]} Nxb7 {[%emt 0:00:11]} 21. Rfd4 {[%emt 0:00:35]} Nxd6 {[%emt 0:00:18]} 22. Rxd6 {[%emt 0:00:05]} Rbc8 {[%emt 0:00:11]} 23. Kb2 {[%emt 0:00:08]} Rc6 {[%emt 0:00:45]} 24. Rxc6 {[%emt 0:02:36]} dxc6 {[%emt 0:00:02]} 25. Rxd8 {[%emt 0:00:08]} Kxd8 {[%emt 0:00:36]} 26. f4 {[%emt 0:00:14]} Kd7 {[%emt 0:00:06]} 27. c4 {[%emt 0:00:10]} Kd6 {[%emt 0:00:53]} 28. Kc3 {[%emt 0:00:58]} Kc5 {[%emt 0:00:21]} 29. a3 {[%emt 0:01:07]} a5 {[%emt 0:00:34]} 30. Kd3 {[%emt 0:02:38]} b5 {[%emt 0:02:45]} 31. cxb5 {[%emt 0:00:12]} Kxb5 {[%emt 0:00:24]} 32. Kd4 $19 {[%emt 0:01:30]} 0-1

[Event "NED-ch U20 Youth 2019"]
[Site "Assen"]
[Date "2019.04.30"]
[Round "3.1"]
[White "Vrolijk, Liam"]
[Black "Ghebreab, Elnathan"]
[Result "1-0"]
[ECO "E65"]
[WhiteElo "2465"]
[BlackElo "1882"]
[Annotator "ChessBase"]
[PlyCount "55"]
[EventDate "2019.04.28"]
[EventType "swiss"]
[EventCountry "NED"]
[SourceTitle "playchess.com"]
[Source "ChessBase"]
[SourceQuality "1"]
[TimeControl "40/5400+30:1800+30"]

1. c4 {[%emt 0:00:00]} Nf6 {[%emt 0:01:09]} 2. Nc3 {[%emt 0:00:00]} g6 {[%emt 0:00:31]} 3. g3 {[%emt 0:02:45]} Bg7 {[%emt 0:03:22]} 4. Bg2 {[%emt 0:00:22]} O-O {[%emt 0:00:56]} 5. d4 {[%emt 0:00:42]} d6 {[%emt 0:02:47]} 6. Nf3 {[%emt 0:00:20]} c5 {[%emt 0:16:41]} 7. O-O {[%emt 0:01:25]} Bd7 {[%emt 0:04:02]} 8. dxc5 {[%emt 0:09:05]} dxc5 {[%emt 0:00:09]} 9. Ne5 {[%emt 0:01:25]} Nc6 {[%emt 0:07:29]} 10. Nxc6 {[%emt 0:02:36]} Bxc6 {[%emt 0:00:53]} 11. Bxc6 {[%emt 0:00:09]} Qxd1 {[%emt 0:02:39]} 12. Rxd1 {[%emt 0:00:19]} bxc6 {[%emt 0:00:04]} 13. Be3 {[%emt 0:00:58]} Rab8 {[%emt 0:00:53]} 14. Rab1 {[%emt 0:01:17]} Ng4 {[%emt 0:00:56]} 15. Bxc5 {[%emt 0:02:01]} Bxc3 {[%emt 0:00:12]} 16. bxc3 {[%emt 0:00:07]} a5 {[%emt 0:02:35]} 17. Bxe7 {[%emt 0:01:49]} Rxb1 {[%emt 0:00:07]} 18. Rxb1 {[%emt 0:00:06]} Re8 {[%emt 0:00:09]} 19. Rb7 {[%emt 0:00:15]} c5 {[%emt 0:01:51]} 20. f3 {[%emt 0:02:03]} Ne3 {[%emt 0:00:22]} 21. Bxc5 {[%emt 0:00:21]} Nxc4 {[%emt 0:00:11]} 22. Kf2 {[%emt 0:00:21]} Rd8 {[%emt 0:01:08]} 23. Bd4 {[%emt 0:00:36]} Rc8 {[%emt 0:00:11]} 24. a4 {[%emt 0:02:19]} Nd6 {[%emt 0:00:26]} 25. Rb6 {[%emt 0:00:13]} Nc4 {[%emt 0:00:26]} 26. Rb5 {[%emt 0:00:07]} h5 {[%emt 0:00:23]} 27. e4 {[%emt 0:00:18]} Kh7 {[%emt 0:00:18]} 28. Ke2 {[%emt 0:00:23]} 1-0

[Event "NED-ch U20 Youth 2019"]
[Site "Assen"]
[Date "2019.04.30"]
[Round "3.3"]
[White "Ypma, Jord"]
[Black "De Boer, Eelke"]
[Result "0-1"]
[ECO "E63"]
[WhiteElo "1854"]
[BlackElo "2338"]
[Annotator "NA"]
[PlyCount "130"]
[EventDate "2019.04.28"]
[EventType "swiss"]
[EventCountry "NED"]
[SourceTitle "playchess.com"]
[Source "ChessBase"]
[SourceQuality "1"]
[TimeControl "40/5400+30:1800+30"]

1. d4 {[%emt 0:00:00]} Nf6 {[%emt 0:00:00]} 2. c4 {[%emt 0:00:00]} g6 {[%emt 0:00:00]} 3. g3 {[%emt 0:00:13]} Bg7 {[%emt 0:00:03]} 4. Bg2 {[%emt 0:00:08]} O-O {[%emt 0:00:07]} 5. Nc3 {[%emt 0:00:18]} d6 {[%emt 0:00:19]} 6. Nf3 {[%emt 0:00:26]} Nc6 {[%emt 0:00:08]} 7. O-O {[%emt 0:00:38]} a6 {[%emt 0:00:51]} 8. h3 {[%emt 0:00:30]} Bd7 {[%emt 0:00:34]} 9. e4 {[%emt 0:03:05]} e5 {[%emt 0:00:11]} 10. dxe5 {[%emt 0:01:14]} dxe5 {[%emt 0:00:18]} 11. Be3 {[%emt 0:01:35] E63: King's Indian: Fianchetto: Panno Variation with 7...a6} Qc8 {[%emt 0:02:10]} (11... Be6 12. Qa4 h6 13. Rad1 Qb8 14. Rfe1 Rd8 15. c5 Qa7 16. b4 Rac8 17. a3 Qb8 18. Qc2 Rxd1 19. Rxd1 {0-1 (58) Khismatullin,D (2634)-Fedoseev,V (2707) Satka 2018}) 12. Kh2 {[%emt 0:06:55]} Be6 {[%emt 0:20:48]} 13. b3 {[%emt 0:03:13]} Rd8 {[%emt 0:16:20]} 14. Qc1 {[%emt 0:03:07] [#]} b6 $146 {[%emt 0:01:22]} ({Predecessor:} 14... a5 15. Ng5 Nd4 16. f4 Nh5 17. Bxd4 Rxd4 18. f5 gxf5 19. exf5 {1-0 (31) Cmilyte,V (2470)-Arakhamia Grant,K (2506) St Petersburg 2009}) 15. Ng5 {[%emt 0:01:23]} Nd4 {[%emt 0:04:30]} 16. Nd5 {[%emt 0:12:09]} Nxd5 {[%emt 0:03:00]} 17. cxd5 {[%emt 0:03:16]} Bd7 {[%emt 0:00:10]} 18. Qd2 {[%emt 0:12:05]} (18. Bxd4 $5 exd4 19. f4 $14) 18... c5 {[%emt 0:09:58]} 19. Bxd4 {[%emt 0:04:10]} cxd4 {[%emt 0:00:40]} 20. f4 {[%emt 0:02:53]} f6 {[%emt 0:01:53]} 21. Nf3 {[%emt 0:02:07]} Qc7 {[%emt 0:00:53]} ({Better is} 21... Bh6 $15) 22. fxe5 {[%emt 0:02:37]} fxe5 {[%emt 0:00:17]} 23. Qg5 {[%emt 0:02:08]} Qd6 {[%emt 0:01:46]} 24. Nd2 {[%emt 0:04:22]} b5 {[%emt 0:00:07]} 25. a3 {[%emt 0:04:51]} ({White should play} 25. Nf3 $15) 25... Rdc8 {[%emt 0:03:47]} 26. Nf3 {[%emt 0:03:53]} Rc3 {[%emt 0:01:05]} 27. b4 {[%emt 0:00:35]} a5 {[%emt 0:05:24]} 28. bxa5 {[%emt 0:00:08]} h6 {[%emt 0:00:09]} 29. Qd2 {[%emt 0:02:25]} Rxa5 {[%emt 0:00:44]} 30. Nh4 {[%emt 0:03:25]} Raxa3 {[%emt 0:03:15]} 31. Rxa3 {[%emt 0:01:29]} Rxa3 {[%emt 0:00:07]} 32. Qf2 {[%emt 0:00:13]} Be8 {[%emt 0:00:16]} 33. Rc1 {[%emt 0:00:35]} Ra8 {[%emt 0:03:07]} 34. Bf1 {[%emt 0:00:38]} Bd7 {[%emt 0:00:50]} 35. Qb2 {[%emt 0:04:42]} g5 {[%emt 0:04:28]} 36. Ng2 {[%emt 0:00:55]} Qg6 {[%emt 0:06:06]} 37. Bd3 {[%emt 0:07:37]} Qh5 {[%emt 0:01:18]} 38. h4 {[%emt 0:01:07]} Qg4 {[%emt 0:00:42]} 39. Bxb5 {[%emt 0:02:43]} Bxb5 {[%emt 0:00:52]} 40. Qxb5 {[%emt 0:00:12]} Qxe4 {[%emt 0:00:16]} 41. Qc4 {[%emt 0:32:19]} Qg6 {[%emt 0:34:10]} 42. d6+ {[%emt 0:03:12]} Qf7 {[%emt 0:02:14]} 43. Qb5 {[%emt 0:00:00]} Rd8 {[%emt 0:00:00]} 44. Rc7 {[%emt 0:00:00]} Qe6 {[%emt 0:00:00]} 45. d7 {[%emt 0:00:00]} Bf6 {[%emt 0:00:00]} 46. Qb7 {[%emt 0:00:00]} e4 {[%emt 0:00:00]} 47. Rc6 $15 {[%emt 0:00:00]} Qe7 {[%emt 0:00:00]} 48. Rxf6 {[%emt 0:00:00]} Qxf6 {[%emt 0:00:00]} 49. Qxe4 {[%emt 0:00:00]} Kf7 {[%emt 0:00:00]} 50. Ne1 {[%emt 0:00:00]} Rxd7 {[%emt 0:00:00]} 51. hxg5 {[%emt 0:00:00]} hxg5 {[%emt 0:00:00]} 52. Nf3 {[%emt 0:00:00]} Kg7 {[%emt 0:00:00]} 53. Qg4 {[%emt 0:00:00]} Rd5 {[%emt 0:00:00]} 54. Qe4 {[%emt 0:00:00]} Rd8 {[%emt 0:00:00]} 55. Kg2 {[%emt 0:00:00]} d3 {[%emt 0:00:00]} 56. Nd2 {[%emt 0:00:00]} Rd7 {[%emt 0:00:00]} 57. Qg4 {[%emt 0:00:00]} Re7 {[%emt 0:01:27]} 58. Ne4 {[%emt 0:00:00]} Qc6 {[%emt 0:01:18]} 59. Qxg5+ {[%emt 0:00:04]} Kf8 {[%emt 0:00:15]} 60. Qf4+ {[%emt 0:01:14]} Ke8 {[%emt 0:03:21]} 61. Qb8+ {[%emt 0:00:35]} Kd7 {[%emt 0:02:32]} 62. Qa7+ {[%emt 0:00:20]} Ke6 {[%emt 0:00:51]} 63. Qa2+ {[%emt 0:03:12]} Kf5 {[%emt 0:00:54]} 64. Qa5+ {[%emt 0:02:33]} Kxe4 {[%emt 0:00:16]} 65. Qh5 {[%emt 0:02:00]} Kd4+ {[%emt 0:00:53]} 0-1